fUSD/lending_fUSD_20260527
["ID","MTS","AMOUNT","RATE_DAILY","PERIOD"]
[423100279,1779848806000,-300.0,0.00010689,2]
[423100278,1779848806000,-300.0,0.00010688,2]
[423100283,1779848831000,500.0,0.00028018,120]
[423100284,1779848850000,152.0,0.00010003,30]
[423100285,1779848851000,152.0,0.00025947,120]
[423100286,1779848853000,475.6088987,0.00028018,120]
[423100289,1779848871000,500.0,0.00010214,2]
[423100309,1779849007000,500.0,0.00028018,120]
[423100316,1779849031000,-500.0,0.0001059,2]
[423100318,1779849031000,-157.26692766,0.00010605,2]
[423100315,1779849031000,-232.02,0.0001055,2]
[423100317,1779849031000,-157.26692766,0.00010598,2]
[423100325,1779849031000,-500.0,0.00010699,2]
[423100321,1779849031000,-1200.0,0.00010698,2]
[423100320,1779849031000,-308.47437721,0.00010694,2]
[423100323,1779849031000,-500.0,0.00010699,2]
[423100319,1779849031000,-329.97651619,0.0001069,2]
[423100322,1779849031000,-150.0,0.00010698,2]
[423100326,1779849031000,-500.0,0.00010699,2]
[423100328,1779849031000,-500.0,0.00010699,2]
[423100329,1779849031000,-500.0,0.00010699,2]
[423100327,1779849031000,-500.0,0.00010699,2]
[423100330,1779849031000,-500.0,0.00010699,2]
[423100331,1779849031000,-500.0,0.00010699,2]
[423100332,1779849031000,-500.0,0.00010699,2]
[423100333,1779849031000,-500.0,0.00010699,2]
[423100334,1779849031000,-500.0,0.00010699,2]
[423100324,1779849031000,-506.7786382,0.00010699,2]
[423100345,1779849032000,-500.0,0.00010699,2]
[423100343,1779849032000,-500.0,0.00010699,2]
[423100342,1779849032000,-80.21965419,0.00010699,2]
[423100341,1779849032000,-419.78034581,0.00010699,2]
[423100346,1779849032000,-57061.75793162,0.000107,2]
[423100337,1779849032000,-500.0,0.00010699,2]
[423100339,1779849032000,-500.0,0.00010699,2]
[423100340,1779849032000,-498.25908742,0.00010699,2]
[423100336,1779849032000,-500.0,0.00010699,2]
[423100335,1779849032000,-500.0,0.00010699,2]
[423100338,1779849032000,-500.0,0.00010699,2]
[423100344,1779849032000,-500.0,0.00010699,2]
[423100348,1779849032000,-572.50910308,0.000107,2]
[423100353,1779849032000,-1711.59719033,0.000107,2]
[423100349,1779849032000,-9733.18289234,0.000107,2]
[423100347,1779849032000,-157.26692766,0.00010612,2]
[423100379,1779849032000,-603.84235597,0.000107,2]
[423100377,1779849032000,-716.88532856,0.000107,2]
[423100369,1779849032000,-6226.43661,0.000107,2]
[423100362,1779849032000,-351.5299975,0.000107,2]
[423100360,1779849032000,-457.18949842,0.000107,2]
[423100373,1779849032000,-1226.08351096,0.000107,2]
[423100358,1779849032000,-6057.05329214,0.000107,2]
[423100354,1779849032000,-478.50807902,0.000107,2]
[423100350,1779849032000,-17198.57241436,0.000107,2]
[423100352,1779849032000,-80055.79139823,0.000107,2]
[423100351,1779849032000,-23860.30615151,0.000107,2]
[423100355,1779849032000,-440.0,0.000107,2]
[423100454,1779849038000,-250.0,0.00011759,2]
[423100442,1779849038000,-297.20400155,0.00011668,2]
[423100441,1779849038000,-813.63,0.00011666,2]
[423100443,1779849038000,-1.98599845,0.00011668,2]
[423100445,1779849038000,-500.0,0.00011701,2]
[423100448,1779849038000,-500.0,0.00011736,2]
[423100447,1779849038000,-1243.98684306,0.0001173,2]
[423100449,1779849038000,-255.0,0.00011736,2]
[423100451,1779849038000,-283.17797475,0.00011748,2]
[423100450,1779849038000,-99.96315694,0.00011748,2]
[423100468,1779849038000,-500.0,0.00012284,2]
[423100453,1779849038000,-250.0,0.00011759,2]
[423100456,1779849038000,-8.75523795,0.00011759,2]
[423100457,1779849038000,-1680.0,0.00011768,2]
[423100455,1779849038000,-291.62440586,0.00011759,2]
[423100459,1779849038000,-315.27,0.00011882,2]
[423100444,1779849038000,-150.0,0.00011674,2]
[423100469,1779849038000,-159.81,0.00012329,2]
[423100470,1779849038000,-200.0,0.00012332,2]
[423100458,1779849038000,-2000.0,0.00011868,2]
[423100460,1779849038000,-150.0,0.00011882,2]
[423100462,1779849038000,-500.0,0.0001201,2]
[423100452,1779849038000,-16.28886831,0.00011748,2]
[423100446,1779849038000,-95.92315694,0.0001173,2]
[423100433,1779849038000,-475.32696114,0.00011371,2]
[423100438,1779849038000,-11181.3875724,0.00011411,2]
[423100463,1779849038000,-152.0,0.00012013,7]
[423100415,1779849038000,-796.55986639,0.000107,2]
[423100416,1779849038000,-3596.22805072,0.000107,2]
[423100418,1779849038000,-399.43,0.00010712,2]
[423100419,1779849038000,-1931.0,0.00010802,2]
[423100420,1779849038000,-150.0,0.00010804,2]
[423100417,1779849038000,-1336.70547753,0.000107,2]
[423100421,1779849038000,-150.0,0.00010911,2]
[423100423,1779849038000,-1869.06714865,0.00011,2]
[423100422,1779849038000,-1432.86452247,0.00011,2]
[423100425,1779849038000,-2584.31111789,0.00011,2]
[423100424,1779849038000,-2495.87773394,0.00011,2]
[423100426,1779849038000,-171.0,0.00011018,2]
[423100427,1779849038000,-399.43,0.00011057,2]
[423100428,1779849038000,-503.62470492,0.00011279,2]
[423100430,1779849038000,-339.88265974,0.00011293,2]
[423100429,1779849038000,-1625.83607749,0.00011293,2]
[423100434,1779849038000,-1513.16049576,0.00011371,2]
[423100431,1779849038000,-4676.61958686,0.00011293,2]
[423100432,1779849038000,-168.0,0.0001137,2]
[423100437,1779849038000,-399.43,0.00011403,2]
[423100436,1779849038000,-322.14387569,0.00011379,2]
[423100440,1779849038000,-167.32,0.00011622,2]
[423100439,1779849038000,-168.21,0.00011595,2]
[423100461,1779849038000,-1683.08,0.00011941,2]
[423100435,1779849038000,-7606.5125431,0.00011371,2]
[423100464,1779849038000,-152.0,0.00012013,7]
[423100496,1779849038000,-169.88,0.00013609,2]
[423100497,1779849038000,-500.0,0.00013654,2]
[423100495,1779849038000,-344.74,0.00013586,2]
[423100517,1779849038000,-251.518648,0.00014399,2]
[423100500,1779849038000,-433.06051599,0.00013699,2]
[423100499,1779849038000,-170.19,0.00013699,2]
[423100501,1779849038000,-500.0,0.00013928,2]
[423100502,1779849038000,-500.0,0.00013928,10]
[423100506,1779849038000,-500.0,0.00014202,2]
[423100516,1779849038000,-251.518648,0.00014399,2]
[423100505,1779849038000,-736.0,0.00014121,2]
[423100511,1779849038000,-153.910249,0.00014399,2]
[423100509,1779849038000,-170.19,0.00014384,2]
[423100508,1779849038000,-9086.27764828,0.00014298,2]
[423100507,1779849038000,-3292.0,0.00014239,2]
[423100510,1779849038000,-159.0,0.00014398,2]
[423100512,1779849038000,-206.931238,0.00014399,2]
[423100513,1779849038000,-206.931238,0.00014399,2]
[423100515,1779849038000,-206.931238,0.00014399,2]
[423100518,1779849038000,-251.518648,0.00014399,2]
[423100520,1779849038000,-151.0,0.00014399,2]
[423100519,1779849038000,-251.518648,0.00014399,2]
[423100465,1779849038000,-344.74,0.00012076,2]
[423100498,1779849038000,-580.81235864,0.00013698,2]
[423100504,1779849038000,-168.21,0.00014079,2]
[423100514,1779849038000,-206.931238,0.00014399,2]
[423100493,1779849038000,-2000.0,0.00013352,2]
[423100467,1779849038000,-315.27,0.00012179,2]
[423100473,1779849038000,-315.27,0.00012476,2]
[423100474,1779849038000,-500.0,0.00012558,2]
[423100471,1779849038000,-168.21,0.00012423,2]
[423100466,1779849038000,-399.43,0.00012094,2]
[423100477,1779849038000,-399.43,0.00012785,2]
[423100475,1779849038000,-1105.95,0.00012668,2]
[423100478,1779849038000,-244.64954904,0.00012816,7]
[423100472,1779849038000,-399.43,0.00012439,2]
[423100480,1779849038000,-433.0,0.0001287,2]
[423100479,1779849038000,-500.0,0.00012832,2]
[423100476,1779849038000,-315.27,0.00012773,2]
[423100481,1779849038000,-2351.0,0.00012945,2]
[423100494,1779849038000,-500.0,0.0001338,2]
[423100482,1779849038000,-315.27,0.0001307,2]
[423100488,1779849038000,-152.0,0.00013199,7]
[423100485,1779849038000,-399.43,0.0001313,2]
[423100489,1779849038000,-152.0,0.00013225,7]
[423100486,1779849038000,-152.0,0.00013171,7]
[423100487,1779849038000,-152.0,0.00013171,7]
[423100490,1779849038000,-152.0,0.00013225,7]
[423100491,1779849038000,-168.21,0.00013251,2]
[423100492,1779849038000,-1396.99833062,0.0001334,2]
[423100484,1779849038000,-500.0,0.00013106,2]
[423100503,1779849038000,-167.32,0.00013946,2]
[423100525,1779849039000,-563.73735845,0.00014498,2]
[423100529,1779849039000,-363.90572318,0.00014498,2]
[423100527,1779849039000,-500.0,0.00014498,2]
[423100528,1779849039000,-500.0,0.00014498,2]
[423100521,1779849039000,-15948.1927003,0.00014399,2]
[423100526,1779849039000,-500.0,0.00014498,2]
[423100522,1779849039000,-154.534845,0.000144,2]
[423100523,1779849039000,-500.0,0.00014476,2]
[423100524,1779849039000,-263.02839009,0.00014498,2]
[423100532,1779849039000,-500.0,0.00014498,2]
[423100533,1779849039000,-500.0,0.00014498,2]
[423100534,1779849039000,-248.94580751,0.00014498,2]
[423100531,1779849039000,-500.0,0.00014498,2]
[423100535,1779849039000,-15508.79174195,0.00014499,2]
[423100537,1779849039000,-1576.94745,0.00014499,2]
[423100536,1779849039000,-775.32092544,0.00014499,2]
[423100530,1779849039000,-500.0,0.00014498,2]
[423100548,1779849040000,-206.931238,0.00014499,2]
[423100556,1779849040000,-159.0,0.00014499,2]
[423100557,1779849040000,-154.136551,0.00014499,2]
[423100558,1779849040000,-166.36,0.000145,2]
[423100562,1779849040000,-2000.0,0.00014836,2]
[423100563,1779849040000,-7144.99234063,0.00014872,2]
[423100551,1779849040000,-251.518648,0.00014499,2]
[423100560,1779849040000,-504.14146936,0.0001475,2]
[423100559,1779849040000,-35491.15674028,0.00014564,2]
[423100561,1779849040000,-200.0,0.000148,5]
[423100553,1779849040000,-251.518648,0.00014499,2]
[423100555,1779849040000,-159.0,0.00014499,2]
[423100554,1779849040000,-251.518648,0.00014499,2]
[423100549,1779849040000,-206.931238,0.00014499,2]
[423100546,1779849040000,-206.931238,0.00014499,2]
[423100542,1779849040000,-1135.96567531,0.00014499,2]
[423100545,1779849040000,-526.3387182,0.00014499,2]
[423100544,1779849040000,-75761.37724268,0.00014499,2]
[423100543,1779849040000,-19507.69031762,0.00014499,2]
[423100541,1779849040000,-1819.1209591,0.00014499,2]
[423100540,1779849040000,-390.204,0.00014499,2]
[423100539,1779849040000,-504.28224,0.00014499,2]
[423100565,1779849040000,-206.931238,0.00014873,2]
[423100552,1779849040000,-251.518648,0.00014499,2]
[423100564,1779849040000,-206.931238,0.00014873,2]
[423100547,1779849040000,-206.931238,0.00014499,2]
[423100566,1779849040000,-206.931238,0.00014873,2]
[423100585,1779849040000,-393.70027199,0.00014999,2]
[423100591,1779849040000,-37780.53205576,0.00015,2]
[423100587,1779849040000,-500.0,0.00014999,2]
[423100586,1779849040000,-500.0,0.00014999,2]
[423100590,1779849040000,-475.80353924,0.00015,2]
[423100589,1779849040000,-18850.04164589,0.00015,2]
[423100583,1779849040000,-514.24822822,0.00014999,2]
[423100582,1779849040000,-395.75803389,0.00014999,2]
[423100588,1779849040000,-180490.32615684,0.00015,2]
[423100584,1779849040000,-106.29972801,0.00014999,2]
[423100567,1779849040000,-206.931238,0.00014873,2]
[423100577,1779849040000,-500.0,0.00014999,2]
[423100581,1779849040000,-111.53383448,0.00014999,2]
[423100579,1779849040000,-512.65332938,0.00014999,2]
[423100580,1779849040000,-500.0,0.00014999,2]
[423100571,1779849040000,-251.518648,0.00014873,2]
[423100576,1779849040000,-192.71972581,0.00014999,2]
[423100573,1779849040000,-168.21,0.00014908,2]
[423100574,1779849040000,-1343.504,0.0001491,2]
[423100572,1779849040000,-400.0,0.000149,5]
[423100570,1779849040000,-251.518648,0.00014873,2]
[423100575,1779849040000,-307.28027419,0.00014999,2]
[423100569,1779849040000,-251.518648,0.00014873,2]
[423100568,1779849040000,-251.518648,0.00014873,2]
[423100578,1779849040000,-500.0,0.00014999,2]
[423100665,1779849043000,-581.71217727,0.00015,2]
[423100667,1779849043000,-4067.36611766,0.00015,2]
[423100668,1779849043000,-1418.1592341,0.00015,2]
[423100666,1779849043000,-7029.85982336,0.00015,2]
[423100671,1779849043000,-8939.43248051,0.00015,2]
[423100670,1779849043000,-946.0836493,0.00015,2]
[423100672,1779849043000,-341.04,0.00015,2]
[423100673,1779849043000,-9002.57144102,0.00015,2]
[423100669,1779849043000,-500.0,0.00015,2]
[423100687,1779849046000,-79769.22522705,0.00015,2]
[423100688,1779849046000,-4342.66004504,0.00015,2]
[423100685,1779849046000,-494.61771879,0.00015,2]
[423100686,1779849046000,-25081.54695369,0.00015,2]
[423100683,1779849046000,-1110.9295,0.00015,2]
[423100684,1779849046000,-1151.30067516,0.00015,2]
[423100682,1779849046000,-45566.88573078,0.00015,2]
[423100680,1779849046000,-3257.52971562,0.00015,2]
[423100681,1779849046000,-65166.45,0.00015,2]
[423100679,1779849046000,-2190.331,0.00015,2]
[423100714,1779849096000,3383.118196,0.00026849,120]
[423100737,1779849300000,298.87,7.272e-05,2]
[423100738,1779849300000,298.87,7.655e-05,2]
[423100743,1779849301000,298.87,9.186e-05,2]
[423100742,1779849301000,47.611289,8.803e-05,2]
[423100741,1779849301000,251.258711,8.803e-05,2]
[423100740,1779849301000,298.87,8.42e-05,2]
[423100739,1779849301000,298.87,8.037e-05,2]
[423100745,1779849302000,298.87,9.951e-05,2]
[423100744,1779849302000,298.87,9.568e-05,2]
[423100759,1779849723000,150.0,0.00010024,2]
[423100765,1779850199000,224.52,6.208e-05,2]
[423100769,1779850200000,224.52,7.514e-05,2]
[423100768,1779850200000,224.52,7.188e-05,2]
[423100767,1779850200000,224.52,6.861e-05,2]
[423100766,1779850200000,224.52,6.534e-05,2]
[423100770,1779850201000,224.52,7.841e-05,2]
[423100772,1779850201000,80.23631658,8.168e-05,2]
[423100771,1779850201000,144.28368342,8.168e-05,2]
[423100774,1779850201000,224.52,8.821e-05,2]
[423100775,1779850201000,224.52,9.148e-05,2]
[423100773,1779850201000,224.52,8.495e-05,2]
[423100778,1779850202000,224.52,0.00010128,2]
[423100777,1779850202000,224.52,9.801e-05,2]
[423100776,1779850202000,224.52,9.475e-05,2]
[423100780,1779850226000,152.0,0.00025897,120]
[423100779,1779850226000,152.0,0.00010005,30]
[423100821,1779850232000,-298.87,0.00013013,2]
[423100811,1779850232000,-1153.57,0.00012504,2]
[423100817,1779850232000,-152.0,0.00012793,7]
[423100813,1779850232000,-457.1,0.00012554,2]
[423100816,1779850232000,-152.0,0.00012793,7]
[423100815,1779850232000,-298.87,0.0001263,2]
[423100812,1779850232000,-2899.48,0.00012535,2]
[423100818,1779850232000,-1153.57,0.00012816,2]
[423100820,1779850232000,-3681.97,0.00012997,2]
[423100810,1779850232000,-669.95,0.00012455,2]
[423100814,1779850232000,-150.0,0.00012554,2]
[423100826,1779850232000,-298.87,0.00013396,2]
[423100822,1779850232000,-1153.57,0.00013129,2]
[423100829,1779850232000,-255.0,0.00013646,2]
[423100819,1779850232000,-152.0,0.00012931,7]
[423100823,1779850232000,-1891.77931548,0.00013191,2]
[423100830,1779850232000,-420.0,0.00013654,2]
[423100827,1779850232000,-1153.57,0.00013441,2]
[423100831,1779850232000,-500.0,0.00013698,2]
[423100825,1779850232000,-1518.69740218,0.00013191,2]
[423100824,1779850232000,-2945.83406362,0.00013191,2]
[423100833,1779850232000,-1258.93,0.00013698,2]
[423100834,1779850232000,-500.0,0.00013698,2]
[423100832,1779850232000,-314.28213959,0.00013698,2]
[423100836,1779850232000,-500.0,0.00013698,2]
[423100828,1779850232000,-1680.0,0.00013632,2]
[423100808,1779850232000,-300.0,0.00012444,2]
[423100801,1779850232000,-169.08,0.00012341,2]
[423100800,1779850232000,-298.87,0.00012248,2]
[423100782,1779850232000,-224.52,0.00010455,2]
[423100784,1779850232000,-283.37206144,0.000106,2]
[423100781,1779850232000,-298.87,0.00010334,2]
[423100783,1779850232000,-216.62793856,0.000106,2]
[423100786,1779850232000,-224.52,0.00010782,2]
[423100785,1779850232000,-298.87,0.00010717,2]
[423100794,1779850232000,-224.52,0.00011762,2]
[423100795,1779850232000,-2018.0,0.00011864,2]
[423100790,1779850232000,-250.0,0.00011367,2]
[423100793,1779850232000,-920.709481,0.00011601,2]
[423100835,1779850232000,-500.0,0.00013698,2]
[423100788,1779850232000,-298.87,0.00011099,2]
[423100809,1779850232000,-1282.07,0.00012445,2]
[423100797,1779850232000,-198.0,0.00011938,2]
[423100789,1779850232000,-224.52,0.00011108,2]
[423100791,1779850232000,-224.52,0.00011435,2]
[423100792,1779850232000,-298.87,0.00011482,2]
[423100787,1779850232000,-373.36687517,0.00010782,2]
[423100799,1779850232000,-150.0,0.0001217,2]
[423100798,1779850232000,-224.52,0.00012088,2]
[423100802,1779850232000,-200.0,0.00012358,2]
[423100805,1779850232000,-155.01,0.00012396,2]
[423100806,1779850232000,-224.52,0.00012415,2]
[423100807,1779850232000,-300.0,0.00012444,2]
[423100803,1779850232000,-1200.0,0.00012393,2]
[423100804,1779850232000,-2616.81,0.00012394,2]
[423100796,1779850232000,-298.87,0.00011865,2]
[423100839,1779850232000,-1153.57,0.00013754,2]
[423100890,1779850232000,-568.95962686,0.00014833,2]
[423100842,1779850232000,-250.0,0.00014,2]
[423100869,1779850232000,-577.20541857,0.00014833,2]
[423100871,1779850232000,-577.20541857,0.00014833,2]
[423100873,1779850232000,-577.20541857,0.00014833,2]
[423100874,1779850232000,-577.20541857,0.00014833,2]
[423100880,1779850232000,-568.95962686,0.00014833,2]
[423100877,1779850232000,-470.83965124,0.00014833,2]
[423100879,1779850232000,-568.95962686,0.00014833,2]
[423100881,1779850232000,-568.95962686,0.00014833,2]
[423100876,1779850232000,-568.95962686,0.00014833,2]
[423100872,1779850232000,-577.20541857,0.00014833,2]
[423100878,1779850232000,-568.95962686,0.00014833,2]
[423100882,1779850232000,-309.63286915,0.00014833,2]
[423100883,1779850232000,-568.95962686,0.00014833,2]
[423100892,1779850232000,-568.95962686,0.00014833,2]
[423100886,1779850232000,-568.95962686,0.00014833,2]
[423100887,1779850232000,-568.95962686,0.00014833,2]
[423100885,1779850232000,-568.95962686,0.00014833,2]
[423100888,1779850232000,-568.95962686,0.00014833,2]
[423100893,1779850232000,-568.95962686,0.00014833,2]
[423100884,1779850232000,-568.95962686,0.00014833,2]
[423100889,1779850232000,-568.95962686,0.00014833,2]
[423100891,1779850232000,-568.95962686,0.00014833,2]
[423100894,1779850232000,-568.95962686,0.00014833,2]
[423100895,1779850232000,-568.95962686,0.00014833,2]
[423100843,1779850232000,-1282.07,0.00014,2]
[423100870,1779850232000,-577.20541857,0.00014833,2]
[423100864,1779850232000,-500.0,0.00014833,2]
[423100875,1779850232000,-500.0,0.00014833,2]
[423100865,1779850232000,-304.73400623,0.00014833,2]
[423100844,1779850232000,-482.06852688,0.00014028,2]
[423100838,1779850232000,-500.0,0.00013698,2]
[423100837,1779850232000,-502.21978273,0.00013698,2]
[423100840,1779850232000,-500.0,0.00013754,2]
[423100841,1779850232000,-298.87,0.00013779,2]
[423100845,1779850232000,-548.0,0.00014055,2]
[423100846,1779850232000,-298.87,0.00014161,2]
[423100867,1779850232000,-577.20541857,0.00014833,2]
[423100852,1779850232000,-5961.7836,0.0001463,2]
[423100851,1779850232000,-1074.803,0.00014628,2]
[423100853,1779850232000,-18518.67429949,0.00014734,2]
[423100847,1779850232000,-298.87,0.00014544,2]
[423100855,1779850232000,-14543.48836615,0.00014734,2]
[423100849,1779850232000,-161.31119736,0.00014589,30]
[423100850,1779850232000,-188.28,0.00014611,2]
[423100848,1779850232000,-1258.93,0.00014563,2]
[423100863,1779850232000,-574.26206526,0.00014833,2]
[423100859,1779850232000,-394.61615091,0.00014833,2]
[423100860,1779850232000,-500.0,0.00014833,2]
[423100866,1779850232000,-500.0,0.00014833,2]
[423100861,1779850232000,-184.11987306,0.00014833,2]
[423100862,1779850232000,-500.0,0.00014833,2]
[423100858,1779850232000,-499.82590875,0.00014833,2]
[423100857,1779850232000,-500.0,0.00014833,2]
[423100854,1779850232000,-12097.59914557,0.00014734,2]
[423100856,1779850232000,-500.0,0.00014833,2]
[423100868,1779850232000,-577.20541857,0.00014833,2]
[423100906,1779850233000,-510.77677328,0.00014833,2]
[423100907,1779850233000,-500.0,0.00014833,2]
[423100903,1779850233000,-483.76340556,0.00014833,2]
[423100899,1779850233000,-501.526714,0.00014833,2]
[423100898,1779850233000,-568.95962686,0.00014833,2]
[423100896,1779850233000,-568.95962686,0.00014833,2]
[423100900,1779850233000,-500.26306124,0.00014833,2]
[423100902,1779850233000,-480.43840348,0.00014833,2]
[423100897,1779850233000,-568.95962686,0.00014833,2]
[423100905,1779850233000,-500.0,0.00014833,2]
[423100904,1779850233000,-500.0,0.00014833,2]
[423100908,1779850233000,-499.93205255,0.00014833,2]
[423100901,1779850233000,-185.62627352,0.00014833,2]
[423100909,1779850233000,-500.0,0.00014833,2]
[423100914,1779850233000,-500.0,0.00014833,2]
[423100915,1779850233000,-500.0,0.00014833,2]
[423100911,1779850233000,-350.00939864,0.00014833,2]
[423100925,1779850233000,-760.53387813,0.00014834,2]
[423100924,1779850233000,-343.32323318,0.00014834,2]
[423100921,1779850233000,-5526.71611138,0.00014834,2]
[423100922,1779850233000,-6277.86036347,0.00014834,2]
[423100919,1779850233000,-500.0,0.00014833,2]
[423100923,1779850233000,-21222.64846332,0.00014834,2]
[423100918,1779850233000,-174.2751763,0.00014833,2]
[423100913,1779850233000,-512.75854852,0.00014833,2]
[423100912,1779850233000,-500.0,0.00014833,2]
[423100916,1779850233000,-172.0,0.00014833,2]
[423100910,1779850233000,-500.0,0.00014833,2]
[423100917,1779850233000,-172.0,0.00014833,2]
[423100920,1779850233000,-500.0,0.00014833,2]
[423100954,1779850238000,-229.535252,0.00015,2]
[423100947,1779850238000,-1258.93,0.00014999,2]
[423100953,1779850238000,-229.535252,0.00015,2]
[423100951,1779850238000,-229.535252,0.00015,2]
[423100945,1779850238000,-587.0,0.00014983,2]
[423100942,1779850238000,-433.0,0.00014838,2]
[423100959,1779850238000,-151.0,0.00015,2]
[423100958,1779850238000,-174.051548,0.00015,2]
[423100963,1779850238000,-151.0,0.00015106,2]
[423100956,1779850238000,-174.051548,0.00015,2]
[423100961,1779850238000,-350.0,0.00015033,2]
[423100955,1779850238000,-174.051548,0.00015,2]
[423100960,1779850238000,-348.13,0.00015024,2]
[423100957,1779850238000,-174.051548,0.00015,2]
[423100966,1779850238000,-1282.07,0.00015556,2]
[423100965,1779850238000,-353.20482834,0.00015523,2]
[423100964,1779850238000,-348.13,0.00015466,2]
[423100975,1779850238000,-736.0,0.00016119,2]
[423100962,1779850238000,-344.74,0.00015096,2]
[423100950,1779850238000,-151.0,0.00015,2]
[423100938,1779850238000,-174.051548,0.00014834,2]
[423100941,1779850238000,-151.0,0.00014834,2]
[423100926,1779850238000,-395.24465621,0.00014834,2]
[423100927,1779850238000,-534.124359,0.00014834,2]
[423100928,1779850238000,-107249.15774831,0.00014834,2]
[423100933,1779850238000,-229.535252,0.00014834,2]
[423100929,1779850238000,-303786.3598379,0.00014834,2]
[423100940,1779850238000,-174.051548,0.00014834,2]
[423100936,1779850238000,-229.535252,0.00014834,2]
[423100939,1779850238000,-174.051548,0.00014834,2]
[423100935,1779850238000,-229.535252,0.00014834,2]
[423100932,1779850238000,-154.547589,0.00014834,2]
[423100934,1779850238000,-229.535252,0.00014834,2]
[423100930,1779850238000,-151.0,0.00014834,2]
[423100937,1779850238000,-174.051548,0.00014834,2]
[423100931,1779850238000,-151.0,0.00014834,2]
[423100944,1779850238000,-152.0,0.00014895,2]
[423100946,1779850238000,-2351.0,0.00014996,2]
[423100948,1779850238000,-1258.93,0.00014999,2]
[423100952,1779850238000,-229.535252,0.00015,2]
[423100949,1779850238000,-110957.77970908,0.00015,2]
[423100943,1779850238000,-500.0,0.00014872,2]
[423100967,1779850238000,-192.32,0.00015621,2]
[423100999,1779850238000,-669.95,0.00017437,2]
[423100969,1779850238000,-1000.0,0.0001577,2]
[423100994,1779850238000,-348.13,0.00016792,2]
[423101003,1779850238000,-151.0,0.00017752,2]
[423100997,1779850238000,-168.21,0.00017392,2]
[423101000,1779850238000,-1258.93,0.00017454,2]
[423100998,1779850238000,-918.72,0.00017397,2]
[423101001,1779850238000,-1252.0,0.00017525,2]
[423100991,1779850238000,-12470.27195521,0.000165,2]
[423100996,1779850238000,-1282.07,0.00017111,2]
[423100992,1779850238000,-168.21,0.00016564,2]
[423101008,1779850238000,-151.0,0.00017752,2]
[423101005,1779850238000,-229.535252,0.00017752,2]
[423101011,1779850238000,-151.0,0.00017752,2]
[423101009,1779850238000,-151.0,0.00017752,2]
[423101004,1779850238000,-229.535252,0.00017752,2]
[423101012,1779850238000,-174.051548,0.00017752,2]
[423101013,1779850238000,-174.051548,0.00017752,2]
[423101006,1779850238000,-229.535252,0.00017752,2]
[423101007,1779850238000,-229.535252,0.00017752,2]
[423100968,1779850238000,-168.21,0.00015736,2]
[423100995,1779850238000,-182.08444663,0.00017,2]
[423101002,1779850238000,-192.32,0.00017573,2]
[423101010,1779850238000,-151.0,0.00017752,2]
[423100990,1779850238000,-6616.0719566,0.000165,2]
[423100993,1779850238000,-344.74,0.00016605,2]
[423100970,1779850238000,-169.88,0.00015855,2]
[423100972,1779850238000,-300.0,0.00016,2]
[423100974,1779850238000,-16310.39980233,0.0001611,15]
[423100971,1779850238000,-348.13,0.00015908,2]
[423100976,1779850238000,-362.476949,0.0001617,2]
[423100983,1779850238000,-151.0,0.00016438,2]
[423100977,1779850238000,-3020.641245,0.0001617,2]
[423100987,1779850238000,-151.0,0.00016438,2]
[423100973,1779850238000,-500.0,0.00016109,2]
[423100978,1779850238000,-3433.56604738,0.000163,2]